fUSD/lending_fUSD_20250609
["ID","MTS","AMOUNT","RATE_DAILY","PERIOD"]
[365134787,1749484242076,-490.0,0.00019178,2]
[365134788,1749484242085,-1454.68,0.00019178,2]
[365134789,1749484242095,-885.02,0.00019178,2]
[365134790,1749484242106,-932.85,0.00019178,2]
[365134791,1749484242116,-516.27,0.00019178,2]
[365134792,1749484242125,-626.1,0.00019178,2]
[365134793,1749484242136,-200.0,0.00019178,2]
[365134794,1749484242147,-925.04,0.00019178,2]
[365134795,1749484242156,-388.32764207,0.00019178,2]
[365134796,1749484242166,-490.0,0.00019178,2]
[365134797,1749484242176,-490.0,0.00019178,2]
[365134798,1749484242186,-490.0,0.00019178,2]
[365134799,1749484242197,-751.13,0.00019178,2]
[365134800,1749484242207,-434.88723089,0.00019178,2]
[365134801,1749484242217,-490.0,0.00019178,2]
[365134802,1749484242227,-490.0,0.00019178,2]
[365134803,1749484242238,-490.0,0.00019178,2]
[365134804,1749484242247,-435.81719592,0.00019178,2]
[365134805,1749484242257,-490.0,0.00019178,2]
[365134806,1749484242267,-1608.62,0.00019178,2]
[365134807,1749484242276,-423.08241276,0.00019178,2]
[365134808,1749484242285,-490.0,0.00019178,2]
[365134809,1749484242295,-490.0,0.00019178,2]
[365134810,1749484242305,-789.96,0.00019178,2]
[365134811,1749484242315,-701.92,0.00019178,2]
[365134812,1749484242324,-409.20329214,0.00019178,2]
[365134813,1749484242334,-490.0,0.00019178,2]
[365134814,1749484242343,-490.0,0.00019178,2]
[365134815,1749484242352,-490.0,0.00019178,2]
[365134816,1749484242362,-250.0,0.00019178,2]
[365134817,1749484242371,-417.22014676,0.00019178,2]
[365134818,1749484242380,-273.35036483,0.00019178,2]
[365134819,1749484242390,-490.0,0.00019178,2]
[365134820,1749484242399,-490.0,0.00019178,2]
[365134821,1749484242408,-660.29,0.00019178,2]
[365134822,1749484242418,-490.0,0.00019178,2]
[365134823,1749484242428,-985.49,0.00019178,2]
[365134824,1749484242439,-490.0,0.00019178,2]
[365134825,1749484242449,-490.0,0.00019178,2]
[365134826,1749484242458,-490.0,0.00019178,2]
[365134827,1749484242468,-176.87561899,0.00019178,2]
[365134828,1749484242478,-592.63,0.00019178,2]
[365134829,1749484242487,-490.0,0.00019178,2]
[365134830,1749484242496,-490.0,0.00019178,2]
[365134831,1749484242506,-388.79600079,0.00019178,2]
[365134832,1749484242516,-498.41,0.00019178,2]
[365134833,1749484242526,-1746.51,0.00019178,2]
[365134834,1749484242535,-490.0,0.00019178,2]
[365134835,1749484242544,-319.6588056,0.00019178,2]
[365134836,1749484242553,-857.82,0.00019178,2]
[365134837,1749484242563,-490.0,0.00019178,2]
[365134838,1749484242571,-490.0,0.00019178,2]
[365134839,1749484242580,-78.00193024,0.00019178,2]
[365134841,1749484242615,-448.59732686,0.00019178,2]
[365134843,1749484242624,-490.0,0.00019178,2]
[365134844,1749484242634,-728.46,0.00019178,2]
[365134845,1749484242643,-810.25,0.00019178,2]
[365134846,1749484242653,-490.0,0.00019178,2]
[365134848,1749484242662,-430.72939697,0.00019178,2]
[365134849,1749484242672,-490.0,0.00019178,2]
[365134850,1749484242681,-490.0,0.00019178,2]
[365134851,1749484242691,-1252.76,0.00019178,2]
[365134852,1749484242701,-490.0,0.00019178,2]
[365134853,1749484242711,-486.50055348,0.00019178,2]
[365134854,1749484242720,-490.0,0.00019178,2]
[365134855,1749484242730,-490.0,0.00019178,2]
[365134856,1749484242739,-490.0,0.00019178,2]
[365134857,1749484242749,-355.12573733,0.00019178,2]
[365134858,1749484242761,-134.87426267,0.00019178,2]
[365134859,1749484242770,-395.18801537,0.00019178,2]
[365134860,1749484242781,-94.81198463,0.00019178,2]
[365134861,1749484242791,-207.70801541,0.00019178,2]
[365134862,1749484242802,-282.29198459,0.00019178,2]
[365134863,1749484242811,-46.86127591,0.00019178,2]
[365134864,1749484242822,-443.13872409,0.00019178,2]
[365134865,1749484242832,-490.0,0.00019178,2]
[365134866,1749484242841,-861.8,0.00019178,2]
[365134867,1749484242850,-490.0,0.00019178,2]
[365134868,1749484242860,-5897.95,0.00019178,2]
[365134869,1749484242869,-490.0,0.00019178,2]
[365134870,1749484242879,-617.1736004,0.00019178,2]
[365134871,1749484242888,-490.0,0.00019178,2]
[365134872,1749484242898,-490.0,0.00019178,2]
[365134873,1749484242907,-4052.39,0.00019178,2]
[365134874,1749484242916,-490.0,0.00019178,2]
[365134875,1749484242926,-490.0,0.00019178,2]
[365134876,1749484242935,-1000.0,0.00019178,2]
[365134877,1749484242944,-490.0,0.00019178,2]
[365134878,1749484242954,-490.0,0.00019178,2]
[365134879,1749484242963,-490.0,0.00019178,2]
[365134880,1749484242973,-490.0,0.00019178,2]
[365134881,1749484242983,-1148.94767551,0.00019178,2]
[365134882,1749484243225,-1024.71682684,0.00019178,2]
[365134883,1749484243334,-778.61549765,0.00019178,2]
[365134884,1749484243344,-2088.03,0.00019178,2]
[365134885,1749484243354,-585.82,0.00019178,2]
[365134887,1749484243363,-486.85814177,0.00019178,2]
[365134889,1749484243373,-150.0,0.00019178,2]
[365134891,1749484243383,-150.0,0.00019178,2]
[365134893,1749484243393,-490.0,0.00019178,2]
[365134895,1749484243403,-755.47,0.00019178,2]
[365134897,1749484243412,-1330.95,0.00019178,2]
[365134899,1749484243425,-490.0,0.00019178,2]
[365134901,1749484243446,-490.0,0.00019178,2]
[365134903,1749484243457,-1446.22,0.00019178,2]
[365134905,1749484243468,-2778.17,0.00019178,2]
[365134907,1749484243478,-768.0,0.00019178,2]
[365134909,1749484243488,-490.0,0.00019178,2]
[365134911,1749484243498,-861.79,0.00019178,2]
[365134912,1749484243508,-1783.25,0.00019178,2]
[365134914,1749484243518,-1201.04,0.00019178,2]
[365134916,1749484243528,-652.76,0.00019178,2]
[365134917,1749484243538,-427.33262794,0.00019178,2]
[365134918,1749484243548,-490.0,0.00019178,2]
[365134919,1749484243558,-2322.3,0.00019178,2]
[365134920,1749484243568,-490.0,0.00019178,2]
[365134921,1749484243578,-560.76,0.00019178,2]
[365134922,1749484243588,-532.57,0.00019178,2]
[365134923,1749484243598,-1345.62,0.00019178,2]
[365134924,1749484243608,-547.07,0.00019178,2]
[365134925,1749484243618,-490.0,0.00019178,2]
[365134926,1749484243629,-2978.42,0.00019178,2]
[365134927,1749484243639,-1466.43,0.00019178,2]
[365134928,1749484243650,-490.0,0.00019178,2]
[365134929,1749484243660,-863.07,0.00019178,2]
[365134930,1749484243670,-490.0,0.00019178,2]
[365134931,1749484243680,-540.06,0.00019178,2]
[365134932,1749484243693,-1727.77,0.00019178,2]
[365134933,1749484243702,-490.0,0.00019178,2]
[365134934,1749484243713,-508.87,0.00019178,2]
[365134935,1749484243723,-830.31,0.00019178,2]
[365134936,1749484243734,-926.28,0.00019178,2]
[365134937,1749484243745,-418.77685492,0.00019178,2]
[365134938,1749484243755,-490.0,0.00019178,2]
[365134939,1749484243766,-490.0,0.00019178,2]
[365134940,1749484243776,-489.66624717,0.00019178,2]
[365134941,1749484243786,-582.22,0.00019178,2]
[365134942,1749484243796,-512.4,0.00019178,2]
[365134943,1749484243806,-490.0,0.00019178,2]
[365134944,1749484243816,-490.0,0.00019178,2]
[365134945,1749484243827,-819.47,0.00019178,2]
[365134946,1749484243836,-1437.0,0.00019178,2]
[365134947,1749484243846,-490.0,0.00019178,2]
[365134948,1749484243856,-490.0,0.00019178,2]
[365134949,1749484243866,-1981.25,0.00019178,2]
[365134950,1749484243876,-1838.98,0.00019178,2]
[365134951,1749484243887,-496.24,0.00019178,2]
[365134952,1749484243896,-586.38,0.00019178,2]
[365134953,1749484243906,-933.86,0.00019178,2]
[365134954,1749484243916,-1228.45,0.00019178,2]
[365134955,1749484243926,-791.31,0.00019178,2]
[365134956,1749484243936,-490.0,0.00019178,2]
[365134957,1749484243948,-1691.22,0.00019178,2]
[365134958,1749484243958,-1698.4,0.00019178,2]
[365134959,1749484243968,-490.0,0.00019178,2]
[365134960,1749484243978,-490.0,0.00019178,2]
[365134961,1749484243988,-490.0,0.00019178,2]
[365134962,1749484243998,-1120.22,0.00019178,2]
[365134963,1749484244007,-490.0,0.00019178,2]
[365134964,1749484244017,-490.0,0.00019178,2]
[365134965,1749484244027,-1153.63,0.00019178,2]
[365134966,1749484244037,-490.0,0.00019178,2]
[365134967,1749484244047,-924.22,0.00019178,2]
[365134968,1749484244057,-253.40350644,0.00019178,2]
[365134969,1749484244067,-490.0,0.00019178,2]
[365134970,1749484244077,-490.0,0.00019178,2]
[365134971,1749484244087,-490.0,0.00019178,2]
[365134972,1749484244099,-3242.29,0.00019178,2]
[365134973,1749484244109,-490.0,0.00019178,2]
[365134974,1749484244119,-490.0,0.00019178,2]
[365134975,1749484244130,-490.0,0.00019178,2]
[365134976,1749484244141,-400.42543664,0.00019178,2]
[365134977,1749484244151,-490.0,0.00019178,2]
[365134978,1749484244160,-425.44638242,0.00019178,2]
[365134979,1749484244170,-580.55,0.00019178,2]
[365134980,1749484244180,-4278.52,0.00019178,2]
[365134981,1749484244191,-490.0,0.00019178,2]
[365134982,1749484244201,-1367.43,0.00019178,2]
[365134983,1749484244211,-490.0,0.00019178,2]
[365134984,1749484244221,-575.88,0.00019178,2]
[365134985,1749484244231,-1055.16,0.00019178,2]
[365134986,1749484244242,-498.55337311,0.00019178,2]
[365134987,1749484244252,-983.66,0.00019178,2]
[365134988,1749484244262,-490.0,0.00019178,2]
[365134989,1749484244272,-1100.11,0.00019178,2]
[365134990,1749484244282,-1457.54,0.00019178,2]
[365134991,1749484244292,-1103.83,0.00019178,2]
[365134992,1749484244303,-490.0,0.00019178,2]
[365134993,1749484244314,-490.0,0.00019178,2]
[365134994,1749484244324,-1070.28,0.00019178,2]
[365134995,1749484244334,-490.0,0.00019178,2]
[365134996,1749484244344,-490.0,0.00019178,2]
[365134997,1749484244354,-490.0,0.00019178,2]
[365134998,1749484244364,-490.0,0.00019178,2]
[365134999,1749484244374,-1563.25,0.00019178,2]
[365135000,1749484244389,-754.8,0.00019178,2]
[365135001,1749484244399,-529.1,0.00019178,2]
[365135002,1749484244408,-1313.97,0.00019178,2]
[365135003,1749484244418,-1155.82,0.00019178,2]
[365135004,1749484244428,-1921.18,0.00019178,2]
[365135005,1749484244438,-674.02,0.00019178,2]
[365135006,1749484244449,-1823.89,0.00019178,2]
[365135007,1749484244458,-490.0,0.00019178,2]
[365135008,1749484244468,-1935.65,0.00019178,2]
[365135009,1749484244478,-450.0,0.00019178,2]
[365135010,1749484244488,-490.0,0.00019178,2]
[365135011,1749484244498,-754.97,0.00019178,2]
[365135012,1749484244508,-2735.49,0.00019178,2]
[365135013,1749484244517,-1125.71,0.00019178,2]
[365135014,1749484244527,-490.0,0.00019178,2]
[365135015,1749484244537,-420.0,0.00019178,2]
[365135016,1749484244547,-1594.53,0.00019178,2]
[365135017,1749484244557,-490.0,0.00019178,2]
[365135018,1749484244567,-1148.37,0.00019178,2]
[365135019,1749484244576,-644.87,0.00019178,2]
[365135020,1749484244586,-568.1,0.00019178,2]
[365135021,1749484244596,-527.56,0.00019178,2]
[365135022,1749484244606,-490.0,0.00019178,2]
[365135023,1749484244616,-2445.8,0.00019178,2]
[365135024,1749484244626,-490.0,0.00019178,2]
[365135025,1749484244636,-490.0,0.00019178,2]
[365135026,1749484244645,-490.0,0.00019178,2]
[365135027,1749484244655,-802.65,0.00019178,2]
[365135028,1749484244665,-490.0,0.00019178,2]
[365135029,1749484244675,-450.0,0.00019178,2]
[365135030,1749484244685,-1070.34,0.00019178,2]
[365135031,1749484244697,-3180.99,0.00019178,2]
[365135032,1749484244707,-490.0,0.00019178,2]
[365135033,1749484244716,-490.0,0.00019178,2]
[365135034,1749484244726,-841.56,0.00019178,2]
[365135035,1749484244735,-2198.03,0.00019178,2]
[365135036,1749484244744,-508.51458641,0.00019178,2]
[365135037,1749484244754,-490.0,0.00019178,2]
[365135038,1749484244765,-891.08,0.00019178,2]
[365135039,1749484244775,-1283.3,0.00019178,2]
[365135040,1749484244784,-898.27,0.00019178,2]
[365135041,1749484244793,-786.86,0.00019178,2]
[365135042,1749484244982,-511.0,0.00019178,2]
[365135043,1749484245006,-490.0,0.00019178,2]
[365135044,1749484245016,-490.0,0.00019178,2]
[365135045,1749484245026,-1000.0,0.00019178,2]
[365135046,1749484245036,-490.0,0.00019178,2]
[365135047,1749484245045,-742.75,0.00019178,2]
[365135048,1749484245056,-490.0,0.00019178,2]
[365135049,1749484245067,-1457.71,0.00019178,2]
[365135050,1749484245076,-21382.64,0.00019178,2]
[365135051,1749484245086,-3406.97,0.00019178,2]
[365135052,1749484245096,-490.0,0.00019178,2]
[365135053,1749484245106,-490.0,0.00019178,2]
[365135054,1749484245116,-490.0,0.00019178,2]
[365135055,1749484245125,-831.38,0.00019178,2]
[365135056,1749484245137,-490.0,0.00019178,2]
[365135057,1749484245147,-490.0,0.00019178,2]
[365135058,1749484245157,-490.0,0.00019178,2]
[365135059,1749484245167,-1992.17,0.00019178,2]
[365135060,1749484245176,-490.0,0.00019178,2]
[365135061,1749484245186,-490.0,0.00019178,2]
[365135062,1749484245196,-1233.07,0.00019178,2]
[365135063,1749484245206,-490.0,0.00019178,2]
[365135064,1749484245216,-900.38,0.00019178,2]
[365135065,1749484245225,-993.32,0.00019178,2]
[365135066,1749484245236,-617.75,0.00019178,2]
[365135067,1749484245246,-757.99,0.00019178,2]
[365135068,1749484245255,-1397.96,0.00019178,2]
[365135069,1749484245265,-1734.58,0.00019178,2]
[365135070,1749484245275,-1036.19,0.00019178,2]
[365135071,1749484245285,-490.0,0.00019178,2]
[365135072,1749484245294,-647.11,0.00019178,2]
[365135073,1749484245304,-902.56,0.00019178,2]
[365135074,1749484245314,-440.5195303,0.00019178,2]
[365135075,1749484245323,-490.0,0.00019178,2]
[365135076,1749484245333,-1999.21,0.00019178,2]
[365135077,1749484245343,-1437.09,0.00019178,2]
[365135078,1749484245352,-490.0,0.00019178,2]
[365135079,1749484245362,-1486.22,0.00019178,2]
[365135080,1749484245371,-458.21756364,0.00019178,2]
[365135081,1749484245381,-1105.72,0.00019178,2]
[365135082,1749484245391,-1153.53,0.00019178,2]
[365135083,1749484245401,-490.0,0.00019178,2]
[365135084,1749484245410,-592.58,0.00019178,2]
[365135085,1749484245420,-819.89,0.00019178,2]
[365135086,1749484245430,-490.0,0.00019178,2]
[365135087,1749484245439,-2168.48,0.00019178,2]
[365135088,1749484245449,-5455.76,0.00019178,2]
[365135089,1749484245459,-490.0,0.00019178,2]
[365135090,1749484245468,-490.0,0.00019178,2]
[365135091,1749484245478,-490.0,0.00019178,2]
[365135092,1749484245487,-490.0,0.00019178,2]
[365135093,1749484245496,-490.0,0.00019178,2]
[365135094,1749484245506,-587.73,0.00019178,2]
[365135095,1749484245515,-963.69,0.00019178,2]
[365135096,1749484245525,-490.0,0.00019178,2]
[365135097,1749484245534,-490.0,0.00019178,2]
[365135098,1749484245543,-616.07,0.00019178,2]
[365135099,1749484245553,-970.65,0.00019178,2]
[365135100,1749484245562,-932.52,0.00019178,2]
[365135101,1749484245572,-490.0,0.00019178,2]
[365135102,1749484245581,-500.0,0.00019178,2]
[365135103,1749484245590,-1348.63,0.00019178,2]
[365135104,1749484245599,-490.0,0.00019178,2]
[365135105,1749484245609,-2010.28,0.00019178,2]
[365135107,1749484245619,-2274.86,0.00019178,2]
[365135109,1749484245628,-597.2,0.00019178,2]
[365135110,1749484245638,-1654.18,0.00019178,2]
[365135111,1749484245647,-490.0,0.00019178,2]
[365135112,1749484245657,-680.18,0.00019178,2]
[365135113,1749484245666,-490.0,0.00019178,2]
[365135114,1749484245675,-438.96928541,0.00019178,2]
[365135115,1749484245684,-490.0,0.00019178,2]
[365135116,1749484245694,-490.0,0.00019178,2]
[365135117,1749484245704,-490.0,0.00019178,2]
[365135118,1749484245713,-1020.06,0.00019178,2]
[365135119,1749484245723,-490.0,0.00019178,2]
[365135120,1749484245732,-490.0,0.00019178,2]
[365135121,1749484245742,-6482.77,0.00019178,2]
[365135122,1749484245751,-490.0,0.00019178,2]
[365135123,1749484245760,-495.97,0.00019178,2]
[365135124,1749484245770,-400.12387281,0.00019178,2]
[365135125,1749484245779,-568.64,0.00019178,2]
[365135126,1749484245789,-200.0,0.00019178,2]
[365135127,1749484245798,-566.03,0.00019178,2]
[365135128,1749484245808,-490.0,0.00019178,2]
[365135129,1749484245817,-648.83,0.00019178,2]
[365135130,1749484245827,-490.0,0.00019178,2]
[365135131,1749484245837,-559.89,0.00019178,2]
[365135132,1749484245847,-490.0,0.00019178,2]
[365135133,1749484245856,-490.0,0.00019178,2]
[365135134,1749484245866,-490.0,0.00019178,2]
[365135135,1749484245875,-490.0,0.00019178,2]
[365135136,1749484245884,-1324.97,0.00019178,2]
[365135137,1749484245894,-634.45,0.00019178,2]
[365135138,1749484245903,-490.0,0.00019178,2]
[365135139,1749484245912,-3127.54,0.00019178,2]
[365135140,1749484245922,-1450.67,0.00019178,2]
[365135141,1749484245932,-490.0,0.00019178,2]
[365135142,1749484245943,-490.0,0.00019178,2]
[365135143,1749484245954,-490.0,0.00019178,2]
[365135144,1749484245964,-725.47,0.00019178,2]
[365135145,1749484245974,-460.0,0.00019178,2]
[365135146,1749484245983,-630.27,0.00019178,2]
[365135147,1749484245993,-658.35,0.00019178,2]
[365135148,1749484246003,-504.75,0.00019178,2]
[365135149,1749484246012,-490.0,0.00019178,2]
[365135150,1749484246022,-2331.33,0.00019178,2]
[365135151,1749484246031,-490.0,0.00019178,2]
[365135152,1749484246041,-562.05,0.00019178,2]
[365135153,1749484246050,-532.82,0.00019178,2]
[365135154,1749484246063,-1514.32,0.00019178,2]
[365135155,1749484246073,-510.61,0.00019178,2]
[365135156,1749484246082,-490.0,0.00019178,2]
[365135157,1749484246092,-583.42,0.00019178,2]
[365135158,1749484246103,-940.61,0.00019178,2]
[365135159,1749484246112,-490.0,0.00019178,2]
[365135160,1749484246122,-1252.98,0.00019178,2]
[365135161,1749484246132,-700.78,0.00019178,2]
[365135162,1749484246143,-1368.14,0.00019178,2]
[365135163,1749484246152,-151.0,0.00019178,2]
[365135164,1749484246162,-15972.0836274,0.00019187,2]
[365135165,1749484246172,-150.0,0.000192,2]
[365135166,1749484246181,-881.23,0.00019205,30]
[365135167,1749484246191,-1530.44192244,0.00019261,2]
[365135168,1749484246202,-151.0,0.0001933,2]
[365135169,1749484246212,-1000.0,0.0001933,2]
[365135170,1749484246222,-1957.856,0.0001933,2]
[365135171,1749484246232,-222.73437919,0.0001933,2]
[365135172,1749484246242,-500.0,0.0001933,2]
[365135173,1749484246252,-500.0,0.0001933,2]
[365135174,1749484246262,-551.79488742,0.0001933,2]
[365135175,1749484246273,-207.4,0.0001933,2]
[365135176,1749484246283,-542.01,0.00019341,2]
[365135177,1749484246292,-1012.49,0.00019341,2]
[365135178,1749484246302,-1012.49,0.00019341,2]
[365135179,1749484246312,-1012.49,0.00019341,2]
[365135180,1749484246322,-500.0,0.00019341,2]
[365135181,1749484246333,-500.0,0.00019341,2]
[365135182,1749484246343,-517.53754856,0.00019341,2]
[365135183,1749484246353,-1437.09,0.00019341,2]
[365135184,1749484246364,-1437.09,0.00019341,2]
[365135185,1749484246374,-500.0,0.00019341,2]
[365135186,1749484246383,-500.0,0.00019341,2]
[365135187,1749484246393,-490.0,0.00019342,2]
[365135188,1749484246402,-490.0,0.00019342,2]
[365135189,1749484246412,-490.0,0.00019342,2]
[365135190,1749484246421,-490.0,0.00019342,2]
[365135191,1749484246431,-490.0,0.00019342,2]
[365135192,1749484246440,-490.0,0.00019342,2]
[365135193,1749484246451,-267.11136607,0.00019342,2]
[365135194,1749484246460,-490.0,0.00019342,2]
[365135195,1749484246469,-216.477764,0.00019342,2]
[365135196,1749484246479,-490.0,0.00019342,2]
[365135197,1749484246488,-490.0,0.00019342,2]
[365135198,1749484246497,-490.0,0.00019342,2]
[365135199,1749484246506,-490.0,0.00019342,2]
[365135200,1749484246516,-490.0,0.00019342,2]
[365135201,1749484246525,-490.0,0.00019342,2]
[365135202,1749484246534,-490.0,0.00019342,2]
[365135203,1749484246543,-490.0,0.00019342,2]
[365135204,1749484246553,-490.0,0.00019342,2]
[365135205,1749484246563,-490.0,0.00019342,2]
[365135206,1749484246572,-490.0,0.00019342,2]
[365135207,1749484246582,-490.0,0.00019342,2]
[365135208,1749484246592,-490.0,0.00019342,2]
[365135209,1749484246601,-230.27866346,0.00019342,2]
[365135210,1749484246610,-490.0,0.00019342,2]
[365135211,1749484246620,-217.20271263,0.00019342,2]
[365135212,1749484246629,-490.0,0.00019342,2]
[365135213,1749484246638,-490.0,0.00019342,2]
[365135214,1749484246648,-490.0,0.00019342,2]
[365135215,1749484246658,-490.0,0.00019342,2]
[365135216,1749484246667,-430.0,0.00019342,2]
[365135217,1749484246677,-375.04887215,0.00019342,2]
[365135218,1749484246686,-490.0,0.00019342,2]
[365135219,1749484246696,-490.0,0.00019342,2]
[365135220,1749484246706,-174.65385352,0.00019342,2]
[365135221,1749484246715,-490.0,0.00019342,2]
[365135222,1749484246724,-490.0,0.00019342,2]
[365135223,1749484246734,-490.0,0.00019342,2]
[365135224,1749484246743,-490.0,0.00019342,2]
[365135225,1749484246754,-490.0,0.00019342,2]
[365135226,1749484246763,-490.0,0.00019342,2]
[365135227,1749484246773,-632.83,0.00019342,2]
[365135228,1749484246782,-531.98,0.00019342,2]
[365135229,1749484246791,-490.0,0.00019342,2]
[365135230,1749484246801,-208.21839445,0.00019342,2]
[365135231,1749484246811,-490.0,0.00019342,2]
[365135232,1749484246820,-490.0,0.00019342,2]
[365135233,1749484246829,-490.0,0.00019342,2]
[365135234,1749484246839,-788.72,0.00019342,2]
[365135235,1749484246848,-490.0,0.00019342,2]
[365135236,1749484246858,-490.0,0.00019342,2]
[365135237,1749484246867,-490.0,0.00019342,2]
[365135238,1749484246876,-490.0,0.00019342,2]
[365135239,1749484246886,-490.0,0.00019342,2]
[365135240,1749484246895,-490.0,0.00019342,2]
[365135241,1749484246905,-490.0,0.00019342,2]
[365135242,1749484246914,-407.31677098,0.00019342,2]
[365135243,1749484246924,-490.0,0.00019342,2]
[365135244,1749484246933,-634.97,0.00019342,2]
[365135245,1749484246944,-490.0,0.00019342,2]
[365135246,1749484246953,-501.48,0.00019342,2]
[365135247,1749484246963,-674.77,0.00019342,2]
[365135248,1749484246972,-407.69146044,0.00019342,2]
[365135249,1749484246982,-490.0,0.00019342,2]
[365135250,1749484246992,-490.0,0.00019342,2]
[365135251,1749484247001,-490.0,0.00019342,2]
[365135252,1749484247011,-490.0,0.00019342,2]
[365135253,1749484247021,-490.0,0.00019342,2]
[365135254,1749484247031,-1025.63,0.00019342,2]
[365135255,1749484247041,-490.0,0.00019342,2]
[365135256,1749484247050,-490.0,0.00019342,2]
[365135257,1749484247064,-532.44,0.00019342,2]
[365135258,1749484247074,-490.0,0.00019342,2]
[365135259,1749484247084,-450.0,0.00019342,2]
[365135260,1749484247094,-1059.32,0.00019342,2]
[365135261,1749484247105,-605.26,0.00019342,2]
[365135262,1749484247114,-539.33,0.00019342,2]
[365135263,1749484247124,-1122.21,0.00019342,2]
[365135264,1749484247134,-490.0,0.00019342,2]
[365135265,1749484247144,-761.38,0.00019342,2]
[365135266,1749484247154,-490.0,0.00019342,2]
[365135267,1749484247163,-153.04743256,0.00019342,2]
[365135268,1749484247173,-1263.27,0.00019342,2]
[365135269,1749484247182,-841.18,0.00019342,2]
[365135270,1749484247192,-644.51,0.00019342,2]
[365135271,1749484247202,-490.0,0.00019342,2]
[365135272,1749484247211,-490.0,0.00019342,2]
[365135273,1749484247221,-540.66,0.00019342,2]
[365135274,1749484247231,-490.0,0.00019342,2]
[365135275,1749484247241,-490.0,0.00019342,2]
[365135276,1749484247251,-546.04712096,0.00019342,2]
[365135277,1749484247261,-1209.55,0.00019342,2]
[365135278,1749484247270,-490.0,0.00019342,2]
[365135279,1749484247280,-490.0,0.00019342,2]
[365135280,1749484247290,-777.08,0.00019342,2]
[365135281,1749484247299,-711.1,0.00019342,2]
[365135282,1749484247309,-490.0,0.00019342,2]
[365135283,1749484247319,-490.0,0.00019342,2]
[365135284,1749484247329,-490.0,0.00019342,2]
[365135285,1749484247338,-737.16,0.00019342,2]
[365135286,1749484247348,-490.0,0.00019342,2]
[365135287,1749484247358,-635.65,0.00019342,2]
[365135288,1749484247367,-863.93,0.00019342,2]
[365135289,1749484247377,-490.0,0.00019342,2]
[365135290,1749484247387,-1075.53,0.00019342,2]
[365135291,1749484247396,-490.0,0.00019342,2]
[365135292,1749484247467,-194.78,0.00019342,2]
[365135293,1749484247477,-490.0,0.00019342,2]
[365135294,1749484247487,-490.0,0.00019342,2]
[365135295,1749484247496,-490.0,0.00019342,2]
[365135296,1749484247505,-1055.49,0.00019342,2]
[365135297,1749484247515,-490.0,0.00019342,2]
[365135298,1749484247524,-510.41,0.00019342,2]
[365135299,1749484247533,-650.51,0.00019342,2]
[365135300,1749484247542,-490.0,0.00019342,2]
[365135301,1749484247551,-490.0,0.00019342,2]
[365135302,1749484247560,-490.0,0.00019342,2]
[365135303,1749484247570,-490.0,0.00019342,2]
[365135304,1749484247579,-490.0,0.00019342,2]
[365135305,1749484247589,-490.0,0.00019342,2]
[365135306,1749484247598,-490.0,0.00019342,2]